[Event "51st Belgrade WGM 2019"]
[Site "Belgrade"]
[Date "2019.03.24"]
[Round "8.3"]
[White "Srdanovic, Jovana"]
[Black "Djukic, Sandra"]
[Result "1/2-1/2"]
[ECO "E46"]
[WhiteElo "2077"]
[BlackElo "2157"]
[Annotator "NA"]
[PlyCount "93"]
[EventDate "2019.03.17"]
[EventType "tourn"]
[EventCountry "SRB"]
[SourceTitle "playchess.com"]
[Source "ChessBase"]
[SourceQuality "1"]
[TimeControl "40/5400+30:1800+30"]

1. d4 {[%emt 0:00:00]} Nf6 {[%emt 0:00:00]} 2. c4 {[%emt 0:00:00]} e6 {[%emt 0:00:00]} 3. Nc3 {[%emt 0:00:00]} Bb4 {[%emt 0:00:04]} 4. e3 {[%emt 0:00:00]} O-O {[%emt 0:00:10]} 5. Nge2 {[%emt 0:00:00]} Re8 {[%emt 0:00:08]} 6. a3 {[%emt 0:00:05]} Bf8 {[%emt 0:00:14]} 7. Ng3 {[%emt 0:00:09]} d5 {[%emt 0:00:52]} 8. Be2 {[%emt 0:00:07]} dxc4 {[%emt 0:09:17]} 9. Bxc4 {[%emt 0:02:36]} c5 {[%emt 0:02:31]} 10. O-O {[%emt 0:00:47]} cxd4 {[%emt 0:01:14]} 11. exd4 {[%emt 0:00:07]} Nc6 {[%emt 0:05:38]} 12. Be3 {[%emt 0:02:25]} a6 {[%emt 0:34:22]} 13. Ba2 {[%emt 0:31:24]} Bd6 {[%emt 0:15:45]} 14. Rc1 {[%emt 0:02:34]} Bc7 {[%emt 0:21:03]} 15. d5 {[%emt 0:08:05]} exd5 {[%emt 0:00:07]} 16. Nxd5 {[%emt 0:00:10]} Nxd5 {[%emt 0:00:21]} 17. Bxd5 {[%emt 0:01:10]} Qf6 {[%emt 0:03:44]} 18. Qb3 {[%emt 0:02:55]} Be5 {[%emt 0:01:45]} 19. Ne4 {[%emt 0:03:13]} Qg6 {[%emt 0:00:53]} 20. Ng5 {[%emt 0:00:25]} Nd8 {[%emt 0:00:49]} 21. Qa4 {[%emt 0:08:39]} Rf8 {[%emt 0:00:50]} 22. Qb3 {[%emt 0:33:46]} h6 {[%emt 0:00:24]} 23. Nf3 {[%emt 0:00:05]} Bf6 {[%emt 0:00:28]} 24. Rc7 {[%emt 0:01:12]} Ne6 {[%emt 0:00:13]} 25. Bxe6 {[%emt 0:00:59]} Bxe6 {[%emt 0:00:04]} 26. Qxb7 {[%emt 0:00:12]} Rab8 {[%emt 0:00:53]} 27. Qxa6 {[%emt 0:00:48]} Bd5 {[%emt 0:00:48]} 28. Ne1 {[%emt 0:00:15]} Rxb2 {[%emt 0:00:32]} 29. Qd6 {[%emt 0:00:50]} Qe4 {[%emt 0:00:40]} 30. Qf4 {[%emt 0:00:52]} Qg6 {[%emt 0:00:36]} 31. Qg3 {[%emt 0:00:25]} Qxg3 {[%emt 0:00:30]} 32. hxg3 {[%emt 0:00:05]} Ra8 {[%emt 0:00:21]} 33. Nf3 {[%emt 0:00:22]} Bxf3 {[%emt 0:00:41]} 34. gxf3 {[%emt 0:00:07]} Rb3 {[%emt 0:00:24]} 35. Rd1 {[%emt 0:01:48]} Be5 {[%emt 0:00:31]} 36. Re7 {[%emt 0:00:09]} Bf6 {[%emt 0:00:25]} 37. Rc7 {[%emt 0:00:34]} Be5 {[%emt 0:00:37]} 38. Re7 {[%emt 0:00:10]} Bf6 {[%emt 0:00:14]} 39. Rc7 {[%emt 0:00:23]} Rbxa3 {[%emt 0:00:24]} 40. Kg2 {[%emt 0:00:45]} Re8 {[%emt 0:00:49]} 41. Rdd7 {[%emt 0:30:51]} Ra2 {[%emt 0:05:12]} 42. Ba7 {[%emt 0:00:00]} Be5 {[%emt 0:05:18]} 43. Rb7 {[%emt 0:00:00]} f5 {[%emt 0:00:29]} 44. f4 {[%emt 0:00:00]} Bf6 {[%emt 0:00:59]} 45. Rb5 {[%emt 0:00:00]} Ra8 {[%emt 0:05:05]} 46. Be3 {[%emt 0:00:00]} R2a5 {[%emt 0:01:55]} 47. Rdd5 {[%emt 0:00:00]} 1/2-1/2

[Event "51st Belgrade WGM 2019"]
[Site "Belgrade"]
[Date "2019.03.24"]
[Round "8.4"]
[White "Prudnikova, Svetlana"]
[Black "Strutinskaia, Galina"]
[Result "1/2-1/2"]
[ECO "D02"]
[WhiteElo "2233"]
[BlackElo "2225"]
[Annotator "NA"]
[PlyCount "25"]
[EventDate "2019.03.17"]
[EventType "tourn"]
[EventCountry "SRB"]
[SourceTitle "playchess.com"]
[Source "ChessBase"]
[SourceQuality "1"]
[TimeControl "40/5400+30:1800+30"]

1. d4 {[%emt 0:00:00]} Nf6 {[%emt 0:00:00]} 2. g3 {[%emt 0:00:00]} d5 {[%emt 0:00:00]} 3. Bg2 {[%emt 0:00:00]} c6 {[%emt 0:00:01]} 4. Nf3 {[%emt 0:00:00]} Bf5 {[%emt 0:00:14]} 5. O-O {[%emt 0:00:25]} e6 {[%emt 0:00:06]} 6. b3 {[%emt 0:00:11]} Nbd7 {[%emt 0:00:58]} 7. Bb2 {[%emt 0:00:06]} b5 {[%emt 0:00:33]} 8. Nbd2 {[%emt 0:00:15]} h6 {[%emt 0:00:44]} 9. c4 {[%emt 0:00:23]} Be7 {[%emt 0:00:14]} 10. Ne5 {[%emt 0:00:21]} Nxe5 {[%emt 0:00:12]} 11. dxe5 {[%emt 0:00:26]} Nd7 {[%emt 0:00:07]} 12. cxb5 {[%emt 0:00:20]} cxb5 {[%emt 0:00:04]} 13. e4 {[%emt 0:00:06]} 1/2-1/2

[Event "51st Belgrade WGM 2019"]
[Site "Belgrade"]
[Date "2019.03.24"]
[Round "8.5"]
[White "Strutinskaia, Galina"]
[Black "Benderac, Ana"]
[Result "0-1"]
[ECO "A13"]
[WhiteElo "2225"]
[BlackElo "2204"]
[Annotator "NA"]
[PlyCount "52"]
[EventDate "2019.03.17"]
[EventType "tourn"]
[EventCountry "SRB"]
[SourceTitle "playchess.com"]
[Source "ChessBase"]
[SourceQuality "1"]
[TimeControl "40/5400+30:1800+30"]

1. c4 {[%emt 0:00:00]} Nf6 {[%emt 0:00:00]} 2. Nf3 {[%emt 0:00:00]} e6 {[%emt 0:00:22]} 3. b3 {[%emt 0:01:54]} d5 {[%emt 0:01:46]} 4. Bb2 {[%emt 0:00:36]} Be7 {[%emt 0:01:00]} 5. e3 {[%emt 0:01:05]} O-O {[%emt 0:00:25]} 6. Be2 {[%emt 0:00:44]} b6 {[%emt 0:07:14]} 7. O-O {[%emt 0:04:50]} Bb7 {[%emt 0:05:35]} 8. Qc2 {[%emt 0:01:52]} c5 {[%emt 0:01:53]} 9. cxd5 {[%emt 0:02:33]} Nxd5 {[%emt 0:00:44]} 10. a3 {[%emt 0:02:22]} Bf6 {[%emt 0:02:43]} 11. Nc3 {[%emt 0:01:18]} Nxc3 {[%emt 0:02:29]} 12. dxc3 {[%emt 0:02:17]} Nd7 {[%emt 0:01:42]} 13. Bd3 {[%emt 0:13:20]} g6 {[%emt 0:07:48]} 14. Be4 {[%emt 0:01:54]} Bxe4 {[%emt 0:00:25]} 15. Qxe4 {[%emt 0:00:02]} Qc7 {[%emt 0:00:19]} 16. Nd2 {[%emt 0:03:26]} Rfd8 {[%emt 0:26:46]} 17. f4 {[%emt 0:00:21]} c4 {[%emt 0:02:05]} 18. Qxc4 {[%emt 0:00:45]} Qxc4 {[%emt 0:00:21]} 19. Nxc4 {[%emt 0:01:00]} Nc5 {[%emt 0:00:13]} 20. Rad1 {[%emt 0:08:10]} Nxb3 {[%emt 0:02:30]} 21. e4 {[%emt 0:01:06]} Be7 {[%emt 0:03:14]} 22. Rfe1 {[%emt 0:05:55]} Rac8 {[%emt 0:03:15]} 23. Rxd8+ {[%emt 0:00:49]} Rxd8 {[%emt 0:00:05]} 24. a4 {[%emt 0:12:41]} Nd2 {[%emt 0:05:05]} 25. Ba3 {[%emt 0:01:52]} Bh4 {[%emt 0:01:29]} 26. g3 {[%emt 0:01:33]} Nxc4 {[%emt 0:00:12]} 0-1

[Event "51st Belgrade WGM 2019"]
[Site "Belgrade"]
[Date "2019.03.24"]
[Round "8.5"]
[White "Benderac, Ana"]
[Black "Voiska, Margarita"]
[Result "1/2-1/2"]
[ECO "A46"]
[WhiteElo "2204"]
[BlackElo "2203"]
[Annotator "NA"]
[PlyCount "20"]
[EventDate "2019.03.17"]
[EventType "tourn"]
[EventCountry "SRB"]
[SourceTitle "playchess.com"]
[Source "ChessBase"]
[SourceQuality "1"]
[TimeControl "40/5400+30:1800+30"]

1. d4 {[%emt 0:00:00]} d5 {[%emt 0:00:00]} 2. Nf3 {[%emt 0:00:00]} Nf6 {[%emt 0:00:00]} 3. e3 {[%emt 0:00:00]} c5 {[%emt 0:00:00]} 4. Be2 {[%emt 0:00:00]} Nc6 {[%emt 0:00:00]} 5. O-O {[%emt 0:00:01]} e6 {[%emt 0:00:00]} 6. dxc5 {[%emt 0:00:34]} Bxc5 {[%emt 0:00:02]} 7. c4 {[%emt 0:00:03]} O-O {[%emt 0:00:04]} 8. Nc3 {[%emt 0:00:06]} dxc4 {[%emt 0:00:22]} 9. Bxc4 {[%emt 0:00:07]} Qxd1 {[%emt 0:00:18]} 10. Rxd1 {[%emt 0:00:06]} e5 {[%emt 0:00:04]} 1/2-1/2